fUSD/lending_fUSD_20260305
["ID","MTS","AMOUNT","RATE_DAILY","PERIOD"]
[407721412,1772700640834,-500.0,0.00016699,2]
[407721413,1772700640844,-500.0,0.00016699,2]
[407721414,1772700640854,-500.0,0.00016699,2]
[407721415,1772700640863,-500.0,0.00016699,2]
[407721416,1772700640873,-536.39251583,0.00016699,2]
[407721417,1772700640883,-500.0,0.00016699,2]
[407721418,1772700640893,-500.0,0.00016699,2]
[407721419,1772700640902,-500.0,0.00016699,2]
[407721421,1772700640912,-500.0,0.00016699,2]
[407721422,1772700640922,-500.0,0.00016699,2]
[407721423,1772700640931,-500.0,0.00016699,2]
[407721424,1772700640942,-500.0,0.00016699,2]
[407721425,1772700640951,-500.0,0.00016699,2]
[407721426,1772700640961,-500.0,0.00016699,2]
[407721427,1772700640972,-500.0,0.00016699,2]
[407721428,1772700640982,-500.0,0.00016699,2]
[407721429,1772700640995,-500.0,0.00016699,2]
[407721430,1772700641008,-500.0,0.00016699,2]
[407721431,1772700641019,-500.0,0.00016699,2]
[407721432,1772700641029,-500.0,0.00016699,2]
[407721433,1772700641040,-500.0,0.00016699,2]
[407721434,1772700641050,-500.0,0.00016699,2]
[407721435,1772700641061,-500.0,0.00016699,2]
[407721436,1772700641070,-500.0,0.00016699,2]
[407721437,1772700641081,-500.0,0.00016699,2]
[407721438,1772700641090,-500.0,0.00016699,2]
[407721439,1772700641100,-500.0,0.00016699,2]
[407721440,1772700641110,-500.0,0.00016699,2]
[407721441,1772700641120,-518.06665456,0.00016699,2]
[407721442,1772700641130,-1256.33,0.00016699,2]
[407721443,1772700641140,-1256.33,0.00016699,2]
[407721444,1772700641150,-1256.33,0.00016699,2]
[407721445,1772700641160,-1256.33,0.00016699,2]
[407721446,1772700641174,-1256.33,0.00016699,2]
[407721447,1772700641183,-1256.33,0.00016699,2]
[407721448,1772700641193,-1256.33,0.00016699,2]
[407721449,1772700641205,-250.0,0.00016725,2]
[407721450,1772700641215,-2500.0,0.00016725,2]
[407721451,1772700641225,-2500.0,0.00016725,2]
[407721452,1772700641235,-2500.0,0.00016725,2]
[407721453,1772700641245,-5000.0,0.00016725,2]
[407721454,1772700641255,-2500.0,0.00016725,2]
[407721455,1772700641265,-2500.0,0.00016725,2]
[407721456,1772700641275,-3880.1742309,0.00016725,2]
[407721457,1772700641285,-500.0,0.00016725,2]
[407721458,1772700641295,-263.62,0.0001679,2]
[407721459,1772700641305,-1338.81,0.000168,2]
[407721460,1772700641315,-151.21,0.000168,2]
[407721461,1772700641325,-307.65540829,0.00016855,2]
[407721462,1772700641335,-500.0,0.00016898,2]
[407721463,1772700641346,-500.0,0.00016898,2]
[407721464,1772700641356,-500.0,0.00016898,2]
[407721465,1772700641366,-500.0,0.00016898,2]
[407721466,1772700641375,-500.0,0.00016898,2]
[407721467,1772700641384,-500.0,0.00016898,2]
[407721468,1772700641393,-582.28,0.00016898,2]
[407721469,1772700641407,-500.0,0.00016898,2]
[407721470,1772700641416,-500.0,0.00016898,2]
[407721471,1772700641426,-500.0,0.00016898,2]
[407721472,1772700641435,-2000.0,0.000169,2]
[407721473,1772700641444,-609.73051546,0.000169,2]
[407721474,1772700641453,-231.35,0.00016972,2]
[407721475,1772700641463,-500.40971882,0.00016973,2]
[407721476,1772700641472,-500.8406382,0.00016973,2]
[407721477,1772700641482,-500.6048629,0.00016973,2]
[407721478,1772700641499,-500.66004421,0.00016973,2]
[407721479,1772700641509,-500.96095128,0.00016973,2]
[407721480,1772700641518,-502.37498593,0.00016973,2]
[407721481,1772700641528,-184.25917093,0.00016973,2]
[407721482,1772700641537,-500.84330545,0.00016973,2]
[407721483,1772700641547,-500.63657563,0.00016973,2]
[407721484,1772700641556,-500.0,0.00016973,2]
[407721485,1772700641565,-501.82148523,0.00016973,2]
[407721486,1772700641574,-502.06109406,0.00016973,2]
[407721487,1772700641583,-501.29533568,0.00016973,2]
[407721488,1772700641593,-500.6040409,0.00016973,2]
[407721489,1772700641603,-501.07937522,0.00016973,2]
[407721490,1772700641612,-500.0,0.00016973,2]
[407721491,1772700641622,-501.03496978,0.00016973,2]
[407721492,1772700641631,-500.45511478,0.00016973,2]
[407721493,1772700641640,-500.0,0.00016973,2]
[407721494,1772700641650,-277.91000131,0.00016973,2]
[407721495,1772700641659,-501.37970938,0.00016973,2]
[407721496,1772700641669,-501.0364462,0.00016973,2]
[407721497,1772700641678,-500.8900569,0.00016973,2]
[407721498,1772700641687,-500.93297401,0.00016973,2]
[407721499,1772700641697,-161.28550548,0.00016973,2]
[407721500,1772700641706,-164.26698433,0.00016973,2]
[407721501,1772700641715,-500.47518083,0.00016973,2]
[407721502,1772700641725,-500.70639793,0.00016973,2]
[407721503,1772700641734,-158.67517064,0.00016973,2]
[407721504,1772700641744,-500.68694088,0.00016973,2]
[407721505,1772700641754,-500.67382019,0.00016973,2]
[407721506,1772700641763,-500.72168875,0.00016973,2]
[407721507,1772700641771,-317.56153456,0.00016973,2]
[407721508,1772700641781,-507.13431696,0.00016973,2]
[407721509,1772700641790,-516.64695093,0.00016973,2]
[407721510,1772700641803,-161.77269484,0.00016973,2]
[407721511,1772700641812,-160.23398328,0.00016973,2]
[407721512,1772700641822,-500.0,0.00016973,2]
[407721513,1772700641831,-500.65533715,0.00016973,2]
[407721514,1772700641840,-501.08912633,0.00016973,2]
[407721515,1772700641850,-500.0,0.00016973,2]
[407721516,1772700641859,-500.30777449,0.00016973,2]
[407721517,1772700641868,-500.61713446,0.00016973,2]
[407721518,1772700641878,-165.98720503,0.00016973,2]
[407721519,1772700641887,-500.82420992,0.00016973,2]
[407721520,1772700641898,-191.82,0.00016983,2]
[407721521,1772700641908,-171.6339,0.00017,2]
[407721522,1772700641917,-171.6339,0.00017,2]
[407721523,1772700641928,-171.6339,0.00017,2]
[407721524,1772700641938,-171.6339,0.00017,2]
[407721525,1772700641948,-171.6339,0.00017,2]
[407721526,1772700641959,-171.6339,0.00017,2]
[407721527,1772700641969,-209.0,0.00017048,2]
[407721528,1772700641979,-263.62,0.0001706,2]
[407721529,1772700641989,-190.0,0.00017082,2]
[407721530,1772700641999,-399.0,0.00017116,2]
[407721531,1772700642010,-250.0,0.00017151,2]
[407721532,1772700642020,-300.0,0.00017151,2]
[407721533,1772700642031,-231.35,0.00017246,2]
[407721534,1772700642041,-300.0,0.00017255,2]
[407721535,1772700642051,-263.62,0.0001733,2]
[407721536,1772700642061,-152.77,0.00017456,2]
[407721537,1772700642072,-420.0,0.00017491,2]
[407721538,1772700642082,-257.0,0.00017491,2]
[407721539,1772700642092,-935.0,0.00017514,2]
[407721540,1772700642102,-231.35,0.0001752,2]
[407721541,1772700642111,-1000.0,0.00017521,2]
[407721542,1772700642121,-1000.86570592,0.00017521,2]
[407721543,1772700642130,-500.88173687,0.00017521,2]
[407721544,1772700642140,-1000.0,0.00017521,2]
[407721545,1772700642150,-1680.0,0.00017579,2]
[407721546,1772700642161,-263.62,0.000176,2]
[407721547,1772700642174,-231.39085002,0.00017794,2]
[407721548,1772700642184,-263.62,0.0001787,2]
[407721549,1772700642194,-500.0,0.00018061,2]
[407721550,1772700642203,-537.76977486,0.00018068,2]
[407721551,1772700642214,-550.62118984,0.00018068,2]
[407721552,1772700642224,-263.62,0.0001814,2]
[407721553,1772700642234,-506.0,0.000184,5]
[407721554,1772700642246,-263.62,0.0001841,2]
[407721555,1772700642255,-481.83,0.00018454,2]
[407721556,1772700642266,-263.62,0.0001868,2]
[407721557,1772700642275,-315.0,0.00018711,2]
[407721558,1772700642285,-481.83,0.00018727,2]
[407721559,1772700642295,-8375.4915621,0.00018854,2]
[407721560,1772700642306,-1013.0264,0.00018854,2]
[407721561,1772700642315,-263.62,0.0001895,2]
[407721562,1772700642325,-481.83,0.00019001,2]
[407721563,1772700642335,-529.0,0.00019124,2]
[407721564,1772700642344,-263.62,0.0001922,2]
[407721565,1772700642354,-481.83,0.00019275,2]
[407721566,1772700642364,-2351.0,0.00019316,2]
[407721567,1772700642374,-152.77,0.00019396,2]
[407721568,1772700642385,-263.62,0.0001949,2]
[407721569,1772700642395,-481.84,0.00019549,2]
[407721570,1772700642405,-263.62,0.0001976,2]
[407721571,1772700642414,-4909.8902181,0.0001983,2]
[407721572,1772700642424,-6801.22270302,0.0001983,2]
[407721573,1772700642433,-150.0,0.0002,20]
[407721574,1772700642443,-1000.0,0.0002,7]
[407721575,1772700642452,-5575.65,0.0002,30]
[407721576,1772700642462,-263.62,0.0002003,2]
[407721577,1772700642473,-263.62,0.000203,2]
[407721578,1772700642483,-263.62,0.0002057,2]
[407721579,1772700642493,-324.30356201,0.00020781,2]
[407721580,1772700642504,-263.62,0.0002084,2]
[407721581,1772700642514,-150.0,0.00020884,2]
[407721582,1772700642524,-288.924676,0.00020886,2]
[407721583,1772700642536,-510.16804487,0.0002101,2]
[407721584,1772700642547,-983.09,0.00021068,2]
[407721585,1772700642560,-500.0,0.00021109,2]
[407721586,1772700642570,-500.0,0.00021109,2]
[407721587,1772700642579,-500.0,0.00021109,2]
[407721588,1772700642588,-500.0,0.00021109,2]
[407721589,1772700642599,-500.0,0.00021109,2]
[407721590,1772700642608,-582.28,0.00021109,2]
[407721591,1772700642619,-500.0,0.00021109,2]
[407721592,1772700642630,-500.0,0.00021109,2]
[407721593,1772700642640,-500.0,0.00021109,2]
[407721594,1772700642652,-263.62,0.0002111,2]
[407721595,1772700642663,-2386.0,0.00021225,2]
[407721596,1772700642673,-191.82,0.00021228,2]
[407721597,1772700642683,-1000.0,0.00021333,2]
[407721598,1772700642693,-152.77,0.00021336,2]
[407721599,1772700642702,-263.62,0.0002138,2]
[407721600,1772700642712,-8375.4915621,0.00021474,2]
[407721601,1772700642721,-263.62,0.0002165,2]
[407721602,1772700642731,-667.7,0.00021918,2]
[407721603,1772700642741,-667.7,0.00021918,2]
[407721604,1772700642751,-667.7,0.00021918,2]
[407721605,1772700642761,-263.62,0.0002192,2]
[407721606,1772700642771,-804.2507156,0.00021983,2]
[407721607,1772700642780,-7217.57,0.00022,30]
[407721608,1772700642790,-180.29897544,0.00022009,2]
[407721609,1772700642800,-401.08765376,0.00022029,2]
[407721610,1772700642809,-520.77,0.0002206,2]
[407721611,1772700642818,-667.7,0.00022137,2]
[407721612,1772700642828,-263.62,0.0002219,2]
[407721613,1772700642837,-667.7,0.00022356,2]
[407721614,1772700642847,-263.62,0.0002246,2]
[407721615,1772700642856,-667.7,0.00022575,2]
[407721616,1772700642866,-263.62,0.0002273,2]
[407721617,1772700642875,-667.7,0.00022795,2]
[407721618,1772700642885,-506.0,0.000228,9]
[407721619,1772700642895,-150.0,0.00022896,90]
[407721620,1772700642905,-198.39220351,0.00022896,90]
[407721621,1772700642915,-160.0,0.00023,2]
[407721622,1772700642924,-263.73,0.00023,2]
[407721623,1772700642934,-667.7,0.00023014,2]
[407721624,1772700642947,-4909.8902181,0.0002316,2]
[407721625,1772700642957,-6801.22270302,0.0002316,2]
[407721626,1772700642967,-667.7,0.00023233,2]
[407721627,1772700642977,-152.77,0.00023275,2]
[407721628,1772700642986,-667.7,0.00023452,2]
[407721629,1772700642995,-1932.1808298,0.00023635,2]
[407721630,1772700643006,-667.7,0.00023671,2]
[407721631,1772700643015,-667.7,0.0002389,2]
[407721632,1772700643025,-1000.0,0.00024,2]
[407721633,1772700643035,-8375.4915621,0.00024093,2]
[407721634,1772700643046,-667.7,0.0002411,2]
[407721635,1772700643056,-667.7,0.00024329,2]
[407721636,1772700643069,-667.7,0.00024548,2]
[407721637,1772700643079,-667.7,0.00024548,2]
[407721639,1772700643088,-558.45260981,0.0002463,2]
[407721640,1772700643098,-2017.87050745,0.00024657,2]
[407721641,1772700643108,-150.0,0.00024658,2]
[407721642,1772700643117,-246.54770135,0.00024797,4]
[407721643,1772700643128,-310.77887769,0.00024799,2]
[407721644,1772700643138,-189.1597078,0.000248,2]
[407721645,1772700643148,-151.0,0.00024897,7]
[407721646,1772700643158,-500.0,0.00024899,2]
[407721647,1772700643171,-500.0,0.00024899,2]
[407721648,1772700643181,-500.0,0.00024899,2]
[407721649,1772700643191,-349.92362241,0.00024899,2]
[407721651,1772700643200,-500.0,0.00024899,2]
[407721653,1772700643211,-500.0,0.00024899,2]
[407721655,1772700643221,-512.19785893,0.00024899,2]
[407721658,1772700643230,-370.69943514,0.00024899,2]
[407721661,1772700643240,-500.0,0.00024899,2]
[407721665,1772700643252,-500.0,0.00024899,2]
[407721666,1772700643262,-582.28,0.00024899,2]
[407721668,1772700643271,-582.28,0.00024899,2]
[407721670,1772700643281,-500.0,0.00024899,2]
[407721672,1772700643290,-500.0,0.00024899,2]
[407721674,1772700643300,-500.0,0.00024899,2]
[407721676,1772700643309,-500.0,0.00024899,2]
[407721678,1772700643318,-500.0,0.00024899,2]
[407721680,1772700643330,-177.14945896,0.00024899,2]
[407721682,1772700643339,-500.0,0.00024899,2]
[407721684,1772700643350,-500.0,0.00024899,2]
[407721685,1772700643359,-98362.91339057,0.000249,2]
[407721689,1772700645571,-361.125,0.00016699,2]
[407721690,1772700645786,-895.205,0.00016699,2]
[407721691,1772700645795,-1256.33,0.00016898,2]
[407721692,1772700645805,-1256.33,0.00021109,2]
[407721693,1772700645815,-1256.33,0.00024899,2]
[407721694,1772700645826,-1256.33,0.00024899,2]
[407721695,1772700645836,-503251.47019043,0.000249,2]
[407721696,1772700645849,-5828.27110341,0.000249,2]
[407721697,1772700645860,-160.0,0.00025,30]
[407721698,1772700645871,-324.30356201,0.00025064,2]
[407721699,1772700645882,-191.82,0.00025474,2]
[407721700,1772700645893,-1595.07,0.0002548,10]
[407721701,1772700645904,-500.0,0.00025869,2]
[407721702,1772700645913,-882.405446,0.00025889,2]
[407721704,1772700645922,-150.0,0.0002589,2]
[407721705,1772700645932,-160.0,0.000262,30]
[407721706,1772700645942,-4909.8902181,0.00026491,2]
[407721707,1772700645953,-6801.22270302,0.00026491,2]
[407721708,1772700645962,-667.7,0.00026594,2]
[407721709,1772700645972,-1000.0,0.00026667,2]
[407721710,1772700645983,-8375.4915621,0.00026713,2]
[407721711,1772700645992,-172.70211477,0.00027,3]
[407721712,1772700646002,-172.70211477,0.00027,3]
[407721713,1772700646011,-150.0,0.00027185,2]
[407721714,1772700646021,-506.0,0.000272,13]
[407721715,1772700646030,-300.0,0.00027397,2]
[407721716,1772700646039,-6800.01,0.00027397,10]
[407721717,1772700646048,-5666.67,0.00027397,10]
[407721718,1772700646058,-500.0,0.00027397,5]
[407721719,1772700646067,-160.0,0.000274,10]
[407721720,1772700646076,-160.0,0.000274,10]
[407721721,1772700646085,-804.2507156,0.00027567,2]
[407721722,1772700646095,-457.13,0.000276,7]
[407721723,1772700646104,-1440.1,0.00027902,2]
[407721724,1772700646113,-305.94,0.00027943,14]
[407721725,1772700646122,-207.92,0.000285,7]
[407721726,1772700646131,-381.71920462,0.00028513,45]
[407721727,1772700646140,-500.0,0.00028513,120]
[407721728,1772700646150,-582.28,0.00028513,120]
[407721729,1772700646159,-500.0,0.00028513,120]
[407721730,1772700646170,-1256.33,0.00028513,120]
[407721731,1772700646180,-150.0,0.00028544,2]
[407721732,1772700646189,-160.0,0.0002859,2]
[407721733,1772700646199,-172.70211477,0.0002859,2]
[407721734,1772700646208,-667.7,0.00028639,2]
[407721735,1772700646218,-504.98178023,0.00028767,5]
[407721736,1772700646227,-168.0,0.00029035,2]
[407721737,1772700646236,-204.06,0.00029086,2]
[407721738,1772700646247,-168.0,0.00029103,2]
[407721739,1772700646257,-168.0,0.00029103,2]
[407721740,1772700646266,-500.0,0.00029107,120]
[407721741,1772700646275,-168.0,0.00029299,2]
[407721742,1772700646283,-168.0,0.00029311,2]
[407721743,1772700646294,-1000.0,0.00029334,2]
[407721744,1772700646303,-324.30356201,0.00029346,2]
[407721745,1772700646312,-168.0,0.00029613,2]
[407721746,1772700646321,-168.0,0.00029624,7]
[407721747,1772700646330,-4909.8902181,0.00029822,2]
[407721748,1772700646339,-6801.22270302,0.00029822,2]
[407721749,1772700646348,-168.0,0.00029859,2]
[407721750,1772700646357,-168.0,0.00029909,2]
[407721751,1772700646367,-168.0,0.0002997,2]
[407721752,1772700646376,-150.0,0.00029971,2]
[407721753,1772700646385,-1440.1,0.00029993,2]
[407721754,1772700646394,-1000.0,0.0003,7]
[407721755,1772700646403,-168.0,0.00030105,2]
[407721756,1772700646412,-168.0,0.00030257,2]
[407721757,1772700646421,-168.0,0.00030374,2]
[407721758,1772700646431,-195.97,0.00030411,120]
[407721759,1772700646440,-168.0,0.00030524,7]
[407721761,1772700646449,-1635.44,0.0003062,2]
[407721762,1772700646458,-150.99,0.0003062,2]
[407721763,1772700646467,-150.99,0.0003062,2]
[407721764,1772700646476,-9999.99,0.0003062,2]
[407721765,1772700646485,-999.99,0.0003062,2]
[407721766,1772700646495,-9999.99,0.0003062,2]
[407721768,1772700646772,-299.99,0.0003062,12]
[407721769,1772700646782,-706.91,0.0003062,2]
[407721770,1772700646792,-3644.18,0.0003062,2]
[407721771,1772700646802,-667.7,0.00030685,2]
[407721772,1772700646812,-168.0,0.00030791,2]
[407721773,1772700646824,-168.0,0.00031155,2]
[407721774,1772700646834,-168.0,0.00031318,2]
[407721775,1772700646843,-168.0,0.00031322,2]
[407721776,1772700646853,-168.0,0.00031428,7]
[407721777,1772700646862,-704.615463,0.00031438,2]
[407721778,1772700646872,-150.0,0.0003147,2]
[407721779,1772700646881,-506.0,0.000316,17]
[407721780,1772700646890,-168.0,0.0003185,2]
[407721781,1772700646899,-168.0,0.00031947,2]
[407721782,1772700646908,-1029.86,0.00032,120]
[407721783,1772700646918,-1000.0,0.00032,2]
[407721784,1772700646927,-1440.1,0.00032083,2]
[407721785,1772700646936,-1029.86,0.000324,120]
[407721786,1772700646945,-580.65367252,0.0003264,90]
[407721787,1772700646954,-500.0,0.00032767,2]
[407721788,1772700646964,-1029.86,0.000328,120]
[407721789,1772700646973,-545.280214,0.00033,8]
[407721790,1772700646982,-150.0,0.00033043,2]
[407721791,1772700646992,-804.2507156,0.0003315,2]
[407721792,1772700647003,-4909.8902181,0.00033152,2]
[407721793,1772700647012,-6801.22270302,0.00033152,2]
[407721794,1772700647022,-1029.86,0.000332,120]
[407721795,1772700647031,-1029.86,0.000336,120]
[407721796,1772700647040,-1029.86,0.00034,120]
[407721797,1772700647050,-1440.1,0.00034174,2]
[407721798,1772700647059,-1029.86,0.000344,120]
[407721799,1772700647068,-150.0,0.00034696,2]
[407721800,1772700647077,-1066.03677286,0.00034795,2]
[407721801,1772700647087,-1029.86,0.000348,120]
[407721802,1772700647096,-160.0,0.00035,120]
[407721803,1772700647105,-200.0,0.00035,3]
[407721804,1772700647115,-160.0,0.00035,120]
[407721805,1772700647123,-1065.11,0.0003502,2]
[407721806,1772700647133,-1029.86,0.000352,120]
[407721807,1772700647143,-558.45260981,0.00035589,120]
[407721808,1772700647152,-1029.86,0.000356,120]
[407721809,1772700647162,-537.74343531,0.00035606,2]
[407721810,1772700647174,-749.79081774,0.00035616,120]
[407721811,1772700647183,-1000.0,0.00035616,120]
[407721812,1772700647192,-1000.0,0.00035616,10]
[407721813,1772700647203,-1000.0,0.00035616,10]
[407721814,1772700647213,-1000.0,0.00035616,10]
[407721815,1772700647222,-1000.0,0.00035616,10]
[407721816,1772700647231,-1000.0,0.00035616,10]
[407721817,1772700647241,-1000.0,0.00035616,10]
[407721818,1772700647250,-1000.0,0.00035616,10]
[407721819,1772700647259,-1000.0,0.00035616,10]
[407721820,1772700647268,-1000.0,0.00035616,10]
[407721821,1772700647277,-1000.0,0.00035616,10]
[407721822,1772700647286,-1000.0,0.00035616,10]
[407721823,1772700647296,-1000.0,0.00035616,10]
[407721824,1772700647305,-1000.0,0.00035616,10]
[407721825,1772700647315,-1000.0,0.00035616,10]
[407721826,1772700647324,-1000.0,0.00035616,10]
[407721827,1772700647333,-1000.0,0.00035616,10]
[407721828,1772700647343,-1000.0,0.00035616,10]
[407721829,1772700647352,-1000.0,0.00035616,10]
[407721830,1772700647362,-1000.0,0.00035616,10]
[407721831,1772700647371,-1000.0,0.00035616,10]
[407721832,1772700647380,-1000.0,0.00035616,10]
[407721833,1772700647389,-181.0,0.00035616,10]
[407721834,1772700647399,-190.21696105,0.00035616,2]
[407721835,1772700647409,-795.46336,0.00035888,30]
[407721836,1772700647418,-184.0,0.00035988,30]
[407721837,1772700647428,-3014.5986,0.00036,120]
[407721838,1772700647437,-1029.86,0.00036,120]
[407721839,1772700647446,-506.0,0.00036,21]
[407721840,1772700647456,-795.46336,0.00036088,30]
[407721841,1772700647465,-710.0,0.00036142,2]
[407721842,1772700647474,-150.0,0.00036142,2]
[407721843,1772700647484,-150.0,0.00036142,2]
[407721844,1772700647494,-150.0,0.00036142,2]
[407721845,1772700647504,-150.0,0.00036142,2]
[407721846,1772700647514,-150.0,0.00036142,2]
[407721847,1772700647523,-150.0,0.00036142,2]
[407721848,1772700647532,-150.0,0.00036142,2]
[407721849,1772700647541,-200.0,0.00036142,2]
[407721850,1772700647551,-672.77,0.00036225,10]
[407721851,1772700647560,-1440.1,0.00036265,5]
[407721852,1772700647569,-795.46336,0.00036288,30]
[407721853,1772700647579,-567.0,0.00036363,2]
[407721854,1772700647588,-200.0,0.00036363,2]
[407721855,1772700647597,-200.0,0.00036363,2]
[407721856,1772700647607,-200.0,0.00036363,2]
[407721857,1772700647616,-200.0,0.00036363,2]
[407721858,1772700647626,-200.0,0.00036363,2]
[407721859,1772700647635,-200.0,0.00036363,2]
[407721860,1772700647645,-200.0,0.00036363,2]
[407721861,1772700647655,-177.0,0.00036363,2]
[407721862,1772700647664,-195.52,0.00036386,10]
[407721863,1772700647673,-1029.86,0.000364,120]
[407721864,1772700647683,-150.0,0.0003643,2]
[407721865,1772700647692,-4909.8902181,0.00036483,2]
[407721866,1772700647702,-795.46336,0.00036488,30]
[407721867,1772700647711,-795.46336,0.00036688,30]
[407721868,1772700647721,-1029.86,0.000368,120]
[407721869,1772700647731,-827.67,0.00036814,10]
[407721870,1772700647740,-795.46336,0.00036888,30]
[407721871,1772700647751,-1000.0,0.00036935,2]
[407721872,1772700647761,-1000.0,0.00036935,2]
[407721873,1772700647771,-1000.0,0.00036935,2]
[407721874,1772700647780,-1000.0,0.00036935,2]
[407721875,1772700647790,-1000.0,0.00036935,2]
[407721876,1772700647799,-795.46336,0.00037088,30]
[407721877,1772700647813,-169.0,0.000372,30]
[407721878,1772700647822,-1029.86,0.000372,120]
[407721879,1772700647832,-574.0,0.00037205,2]
[407721880,1772700647843,-150.0,0.00037205,2]
[407721881,1772700647852,-150.0,0.00037205,2]
[407721882,1772700647862,-150.0,0.00037205,2]
[407721883,1772700647872,-150.0,0.00037205,2]
[407721884,1772700647882,-150.0,0.00037205,2]
[407721885,1772700647892,-156.0,0.00037205,2]
[407721886,1772700647902,-667.76,0.0003726,120]
[407721887,1772700647911,-795.46336,0.00037288,30]
[407721888,1772700647921,-1021.10227,0.000374,120]
[407721889,1772700647930,-795.46336,0.00037488,30]
[407721890,1772700647940,-1029.86,0.000376,120]
[407721891,1772700647950,-795.46336,0.00037688,30]
[407721892,1772700647959,-180.24131651,0.0003774,18]
[407721893,1772700647969,-875.96587139,0.00037753,120]
[407721894,1772700647980,-795.46336,0.00037888,30]
[407721895,1772700647990,-457.13,0.00038,14]
[407721896,1772700648000,-1029.86,0.00038,120]
[407721897,1772700648015,-195.97,0.00038014,120]
[407721898,1772700648025,-795.46336,0.00038088,30]
[407721899,1772700648035,-1296.51960255,0.000381,33]
[407721900,1772700648045,-150.0,0.00038252,2]
[407721901,1772700648054,-795.46336,0.00038288,30]
[407721902,1772700648064,-1440.1,0.00038356,7]
[407721903,1772700648074,-500.0,0.00038356,5]
[407721904,1772700648084,-280.0,0.0003838,5]
[407721905,1772700648094,-1029.86,0.000384,120]
[407721906,1772700648103,-795.46336,0.00038488,30]
[407721907,1772700648113,-288.0,0.00038676,30]
[407721908,1772700648123,-795.46336,0.00038688,30]
[407721909,1772700648133,-804.2507156,0.00038733,2]
[407721910,1772700648144,-545.25988028,0.00038904,5]
[407721911,1772700648153,-1090.0,0.00038954,30]
[407721912,1772700648163,-565.0,0.00038954,30]
[407721913,1772700648175,-1000.0,0.00039,120]
[407721914,1772700648185,-151.0,0.00039085,14]
[407721915,1772700648194,-795.46336,0.00039088,30]
[407721916,1772700648205,-150.0,0.00039123,7]
[407721917,1772700648215,-186.0,0.00039123,7]
[407721918,1772700648225,-795.46336,0.00039288,30]
[407721919,1772700648235,-150.0,0.00039362,7]
[407721920,1772700648246,-276.0,0.00039362,7]
[407721921,1772700648256,-152.0,0.00039405,3]
[407721922,1772700648266,-150.0,0.00039425,30]
[407721923,1772700648275,-197.0,0.00039425,30]
[407721924,1772700648284,-795.46336,0.00039488,30]
[407721925,1772700648294,-795.46336,0.00039688,30]
[407721926,1772700648304,-197.242,0.000398,56]
[407721927,1772700648314,-2031.438,0.000398,56]
[407721928,1772700648323,-4909.8902181,0.00039814,15]
[407721929,1772700648332,-795.46336,0.00039888,30]
[407721930,1772700648342,-163.03230264,0.0003989,2]
[407721931,1772700648351,-706.76,0.000399,120]
[407721932,1772700648360,-500.0,0.00039999,120]
[407721933,1772700648369,-582.28,0.00039999,120]
[407721934,1772700648383,-500.0,0.00039999,120]
[407721935,1772700648395,-500.0,0.00039999,120]
[407721936,1772700648404,-500.0,0.00039999,120]
[407721937,1772700648414,-1256.33,0.00039999,120]
[407721938,1772700648424,-330.13062258,0.0004,45]